bitfinex/quotes_ETHUSD_20241023
["timestamp","ask_amount","ask_price","bid_price","bid_amount"]
[1729705225284,0.8279,2496.7,2496.0,1.25430195]
[1729705225437,7.7484128,2496.6,2495.8,1.25430195]
[1729705225637,0.03519043,2496.6,2496.1,4.00615]
[1729705225836,0.03519043,2496.6,2496.1,4.00613]
[1729705226568,0.03519043,2496.6,2496.2,3.0]
[1729705226775,0.03519043,2496.6,2496.1,3.0]
[1729705227437,0.03519043,2496.6,2496.1,7.00618]
[1729705227638,0.03519043,2496.6,2496.2,1.101246]
[1729705229077,4.83319,2496.7,2496.2,1.101246]
[1729705229260,4.83319,2496.7,2496.0,7.00637]
[1729705229570,4.83319,2496.7,2496.0,3.0]
[1729705229571,4.00572,2496.5,2496.0,3.0]
[1729705229763,3.7428728,2496.6,2496.0,3.0]
[1729705229958,4.00557,2496.6,2496.1,0.73001505]
[1729705230159,4.00557,2496.6,2496.1,3.0]
[1729705230567,4.83331,2496.7,2496.3,0.2]
[1729705230880,4.00545,2496.6,2496.3,0.2]
[1729705231460,8.011,2496.6,2496.3,0.2]
[1729705231700,4.00545,2496.6,2496.3,0.2]
[1729705232320,0.07496836,2496.5,2496.3,0.2]
[1729705233616,0.8149,2496.9,2496.3,4.20591]
[1729705233781,0.8149,2496.9,2496.4,0.821195]
[1729705234917,8.5628028,2496.9,2496.4,0.821195]
[1729705235134,4.00521,2496.8,2496.3,0.2]
[1729705235505,0.8286,2496.4,2496.3,0.2]
[1729705236008,4.83436,2496.4,2496.3,0.2]
[1729705236794,0.8286,2496.4,2496.3,0.2]
[1729705237295,4.83436,2496.4,2496.3,0.2]
[1729705238309,6.09264628,2496.4,2496.3,0.2]
[1729705239842,6.16679765,2496.4,2496.3,0.2]
[1729705242299,4.90851137,2496.4,2496.3,0.2]
[1729705242910,0.90275137,2496.4,2496.3,0.2]
[1729705243108,0.07415137,2496.4,2496.3,0.2]
[1729705243609,0.07390232,2496.4,2496.3,0.2]
[1729705244012,4.79491,2496.6,2496.3,0.2]
[1729705244307,0.07390232,2496.4,2496.3,0.2]
[1729705244534,0.7894,2496.6,2496.3,0.2]
[1729705244742,0.07390232,2496.4,2496.3,0.2]
[1729705245218,0.7894,2496.6,2496.3,0.2]
[1729705245411,0.07390232,2496.4,2496.3,0.2]
[1729705245610,0.7894,2496.6,2496.3,0.2]
[1729705245842,0.07358899,2496.4,2496.3,0.2]
[1729705246052,0.7894,2496.6,2496.3,0.2]
[1729705246591,4.79491,2496.6,2496.3,0.2]
[1729705246745,0.07371032,2496.5,2496.3,0.2]
[1729705247612,0.07371032,2496.5,2496.3,1.45430195]
[1729705248849,4.07934032,2496.5,2496.3,1.44824522]
[1729705249010,4.07934032,2496.5,2496.3,0.2]
[1729705249350,4.07934032,2496.5,2496.3,1.44824522]
[1729705249536,4.07934032,2496.5,2496.4,1.24824522]
[1729705249860,4.76586,2496.4,2496.3,0.2]
[1729705250219,4.83956393,2496.4,2496.3,0.2]
[1729705250432,4.83956393,2496.4,2496.3,1.44824522]
[1729705250633,4.83956393,2496.4,2496.3,0.2]
[1729705255673,0.83380393,2496.4,2496.3,0.2]
[1729705255833,4.83956393,2496.4,2496.3,0.2]
[1729705257282,9.8412434,2496.4,2496.3,0.2]
[1729705258481,0.07370393,2496.4,2496.3,0.2]
[1729705258649,19.5893957,2496.9,2496.3,0.2]
[1729705258650,4.75961,2496.7,2496.3,0.2]
[1729705258990,4.00545,2496.6,2496.3,0.2]
[1729705259145,7.7486328,2496.4,2496.3,0.2]
[1729705259482,4.00547,2496.6,2496.3,0.2]
[1729705259647,0.06865081,2496.4,2496.3,0.2]
[1729705259848,4.00547,2496.6,2496.3,0.2]
[1729705260069,0.06865081,2496.4,2496.3,0.2]
[1729705260281,8.99913508,2496.6,2496.3,0.2]
[1729705260580,7.7483428,2496.6,2496.3,0.2]
[1729705260944,0.06865081,2496.5,2496.3,0.2]
[1729705262256,4.07425081,2496.5,2496.3,0.2]
[1729705262979,4.5382728,2496.4,2496.3,0.2]
[1729705263186,8.5440328,2496.4,2496.3,0.2]
[1729705263545,9.86764689,2496.4,2496.3,0.2]
[1729705263959,6.12477409,2496.4,2496.3,0.2]
[1729705264884,4.66981081,2496.4,2495.8,8.25744734]
[1729705265083,0.66405081,2496.4,2496.0,4.00626]
[1729705265382,0.06865081,2496.4,2496.2,4.00607]
[1729705265691,7.7480228,2496.8,2496.3,4.81516249]
[1729705266046,11.7533028,2496.8,2496.3,0.80924249]
[1729705266270,11.7532628,2496.8,2496.3,0.80924249]
[1729705266666,11.7532428,2496.8,2496.3,0.80924249]
[1729705266978,4.00534,2496.7,2496.2,4.00601]
[1729705267389,4.00545,2496.6,2496.1,4.00623]
[1729705267588,4.00534,2496.7,2496.1,4.00623]
[1729705267748,8.01074,2496.7,2496.1,4.00623]
[1729705267943,7.7484028,2496.6,2496.0,9.26332734]
[1729705268150,4.00553,2496.6,2496.1,4.93253273]
[1729705268563,4.00553,2496.6,2496.1,6.18326007]
[1729705269448,0.06636415,2496.5,2496.1,6.18326007]
[1729705269683,0.06636415,2496.5,2496.2,1.25072734]
[1729705271200,0.06636415,2496.5,2496.2,5.25673734]
[1729705271350,0.8226,2497.0,2496.3,2.51653033]
[1729705271550,4.00455,2497.2,2496.7,4.00521]
[1729705271551,4.00458,2497.2,2496.7,4.00521]
[1729705271787,4.00458,2497.2,2496.7,5.25593734]
[1729705271992,8.00914,2497.2,2496.7,5.25593734]
[1729705272175,4.00456,2497.2,2496.7,5.25593734]
[1729705272488,0.8226,2497.4,2496.9,4.00496]
[1729705272689,4.82683,2497.4,2496.9,4.00496]
[1729705273392,0.8226,2497.4,2496.8,1.94308472]
[1729705273686,4.00433,2497.3,2496.8,5.94818472]
[1729705274065,4.82678,2497.4,2496.9,4.00489]
[1729705274367,0.8226,2497.4,2497.0,0.59479747]
[1729705274769,0.8226,2497.4,2497.0,4.59955747]
[1729705276493,0.8226,2497.4,2497.0,0.59479747]
[1729705276867,4.82683,2497.4,2497.0,0.59479747]
[1729705279201,0.8226,2497.4,2497.0,4.59959747]
[1729705279762,0.8226,2497.4,2497.1,0.75995975]
[1729705280496,4.82683,2497.4,2497.1,0.75995975]
[1729705281091,0.8226,2497.4,2497.1,0.75995975]
[1729705281301,0.8226,2497.4,2497.1,4.76459975]
[1729705281468,0.8226,2497.4,2497.1,0.75995975]
[1729705281673,0.8226,2497.4,2497.2,0.53595472]
[1729705282097,4.00346,2497.9,2497.4,4.00404]
[1729705282290,4.00218,2498.7,2498.2,4.00285]
[1729705282499,24.3965157,2498.8,2498.3,0.08005219]
[1729705282500,4.80724,2498.8,2498.3,0.08005219]
[1729705282765,4.00267,2498.4,2497.9,3.0]
[1729705282974,4.80794,2498.3,2497.9,7.758676]
[1729705283173,4.80794,2498.3,2497.9,3.755336]
[1729705283560,4.80794,2498.3,2497.9,7.758666]
[1729705283760,4.00298,2498.2,2497.5,0.400404]
[1729705284064,4.00311,2498.1,2497.7,4.00367]
[1729705284264,4.00303,2498.2,2497.7,4.00367]
[1729705284560,0.8052,2498.3,2497.6,4.00383]
[1729705284561,0.05612128,2498.0,2497.6,4.00383]
[1729705284899,4.00304,2498.1,2497.6,4.00383]
[1729705284900,0.05612128,2497.9,2497.6,4.00383]
[1729705285399,0.05612128,2497.9,2497.6,4.00377]
[1729705285584,0.05612128,2497.9,2497.7,4.00367]
[1729705285895,4.80802,2498.3,2497.7,4.00367]
[1729705285896,0.05685092,2497.8,2497.7,4.00367]
[1729705286097,4.00289,2498.2,2497.7,4.8444544]
[1729705286258,0.05685092,2497.8,2497.7,4.00367]
[1729705286611,4.00296,2498.2,2497.7,4.00367]
[1729705286773,0.05685092,2497.8,2497.7,4.00359]
[1729705286982,4.80807,2498.3,2497.6,4.00382]
[1729705286983,4.00305,2498.1,2497.6,4.00382]
[1729705287495,0.05685092,2498.0,2497.6,4.00382]
[1729705287786,0.05685092,2498.0,2497.7,4.00366]
[1729705288016,0.7912,2497.9,2497.4,4.00409]
[1729705288190,0.7912,2497.9,2497.5,4.0039]
[1729705288394,0.05685092,2497.8,2497.5,4.0039]
[1729705289291,0.05685092,2497.8,2497.4,4.00415]
[1729705290506,0.05685092,2497.8,2497.3,4.00421]
[1729705290507,0.05685092,2497.8,2497.5,4.00399]
[1729705290904,0.05685092,2497.8,2497.5,4.00392]
[1729705291108,0.05685092,2497.8,2497.7,4.00368]
[1729705291494,0.7717,2498.1,2497.9,4.00336]
[1729705291695,0.7717,2498.1,2498.0,4.0032]
[1729705292106,0.7717,2498.1,2497.9,8.00663]
[1729705292436,0.7717,2498.1,2497.9,8.00653]
[1729705292650,0.8136,2498.3,2498.0,4.0032]
[1729705292935,0.8136,2498.3,2498.1,4.0029]
[1729705293096,0.8136,2498.3,2498.1,4.00304]
[1729705293430,3.7428728,2498.6,2498.1,4.00304]
[1729705293431,8.5609728,2498.6,2498.1,4.00304]
[1729705293831,4.5586728,2498.6,2498.1,4.00304]
[1729705293992,4.5586728,2498.6,2498.1,4.8837293]
[1729705294192,4.5586728,2498.6,2498.3,4.00256]
[1729705294193,0.8158,2498.6,2498.3,4.00256]
[1729705294442,0.8005,2498.8,2498.4,4.00249]
[1729705295209,0.8051,2499.0,2498.5,4.00232]
[1729705295433,4.80676,2499.0,2498.5,4.00232]
[1729705296250,0.8051,2499.0,2498.3,4.00262]
[1729705296450,4.0018,2498.9,2498.4,4.402752]
[1729705296747,4.0018,2498.9,2498.4,0.400262]
[1729705296956,23.5905557,2499.3,2498.1,4.0029]
[1729705296957,0.8159,2498.7,2498.1,4.0029]
[1729705297120,7.7451128,2498.6,2498.1,4.0029]
[1729705297811,4.00224,2498.6,2498.1,4.0029]
[1729705298010,0.8159,2498.7,2498.1,4.0029]
[1729705298011,4.81808,2498.7,2498.2,4.00285]
[1729705298222,4.81808,2498.7,2498.2,4.803425]
[1729705298622,4.00224,2498.6,2498.2,0.800575]
[1729705299640,4.05637909,2498.5,2498.2,0.800575]
[1729705299952,0.05393909,2498.5,2498.2,0.800575]
[1729705300555,4.05640909,2498.5,2498.2,0.800575]
[1729705301653,0.7689,2498.3,2497.8,3.0]
[1729705301842,0.7689,2498.3,2497.7,4.00367]
[1729705302044,0.7689,2498.3,2497.6,4.00377]
[1729705302045,7.7458528,2498.2,2497.6,4.00377]
[1729705302225,7.7458528,2498.2,2497.7,0.8408042]
[1729705302226,4.00311,2498.1,2497.7,0.8408042]
[1729705302420,4.00311,2498.1,2497.6,4.00377]
[1729705302421,4.00321,2498.0,2497.5,4.404272]
[1729705302621,3.79681189,2498.2,2497.6,4.0038]
[1729705302622,0.7597,2497.9,2497.6,4.0038]
[1729705302850,0.05393909,2497.9,2497.6,4.0038]
[1729705303222,4.76274,2498.1,2497.6,4.0038]
[1729705303823,0.05393909,2498.0,2497.7,4.00365]
[1729705304023,0.05393909,2498.0,2497.8,0.800745]
[1729705304261,8.00625,2498.1,2497.6,4.0038]
[1729705304440,4.00312,2498.1,2497.6,4.0038]
[1729705304644,0.05393909,2498.0,2497.8,4.00343]
[1729705304952,20.3496957,2498.4,2497.9,0.400343]
[1729705305263,19.5893957,2498.4,2498.1,4.00303]
[1729705305445,4.7688,2498.6,2498.1,4.00303]
[1729705305662,4.7688,2498.6,2498.2,0.400303]
[1729705306036,0.06923881,2501.0,2498.2,0.400303]
[1729705306037,13.52740501,2498.9,2498.3,0.12]
[1729705306241,0.06923881,2501.0,2498.3,0.12]
[1729705306242,0.01,2502.0,2499.3,5.0]
[1729705306527,4.46638287,2504.4,2501.6,3.99731]
[1729705306528,3.99597,2502.6,2501.6,3.99731]
[1729705306794,3.99552,2502.8,2501.6,3.99731]
[1729705306795,3.99552,2502.8,2501.6,3.99744]
[1729705306958,0.01,2502.9,2501.9,3.9968]
[1729705307146,0.01,2502.9,2502.0,3.0]
[1729705307346,4.00547,2502.9,2502.0,3.0]
[1729705307550,4.00547,2502.9,2501.9,3.99683]
[1729705307551,4.00547,2502.9,2502.1,3.99654]
[1729705307745,3.99513,2503.1,2502.1,6.55313377]
[1729705307973,4.395773,2503.0,2502.1,3.99654]
[1729705308153,0.400513,2503.0,2502.2,4.07639581]
[1729705308368,0.01,2503.4,2502.3,3.0]
[1729705308555,3.99445,2503.5,2502.3,3.0]
[1729705308556,3.99474,2503.3,2502.3,13.71954236]
[1729705308885,3.99474,2503.3,2502.3,6.99619]
[1729705309189,0.7898,2503.4,2502.3,6.99619]
[1729705309391,0.7898,2503.4,2502.5,3.99599]
[1729705309579,0.7898,2503.4,2502.5,3.99588]
[1729705309892,0.7898,2503.4,2502.3,3.9963]
[1729705309893,0.01,2503.2,2502.3,3.9963]
[1729705310040,0.55966476,2503.2,2502.1,3.0]
[1729705310245,0.01,2503.3,2502.4,3.99606]
[1729705310662,0.01,2503.3,2502.6,3.99568]
[1729705311202,0.01,2503.3,2502.5,3.9959]
[1729705311783,0.7898,2503.4,2502.6,3.99579]
[1729705312391,1.48598,2503.3,2502.5,7.9918]
[1729705312686,6.27282763,2503.3,2502.6,3.99583]
[1729705313182,6.27282763,2503.3,2502.5,3.99598]
[1729705313401,4.78684763,2503.0,2502.3,3.99624]
[1729705313549,0.47868476,2502.9,2502.3,3.99624]
[1729705313740,0.47868476,2502.9,2502.4,3.99615]
[1729705314145,0.47868476,2502.9,2502.3,3.99624]
[1729705314376,0.47868476,2502.9,2502.3,3.99622]
[1729705314575,0.04221111,2502.8,2502.4,3.99614]
[1729705314777,0.57298546,2502.8,2502.4,3.99614]
[1729705315752,0.57298546,2502.8,2502.1,3.99657]
[1729705315981,0.7855,2502.6,2502.1,3.99657]
[1729705316186,0.7855,2502.6,2502.1,7.9931]
[1729705316393,0.0421663,2502.5,2502.1,3.99653]
[1729705316679,0.60361769,2502.5,2502.1,3.99653]
[1729705316892,0.60361769,2502.5,2501.2,1.23959245]
[1729705316893,0.01,2502.2,2501.2,1.23959245]
[1729705317179,0.01,2502.2,2501.3,3.99781]
[1729705317180,0.7855,2501.9,2501.3,3.99781]
[1729705317344,0.55723476,2501.8,2501.4,3.99774]
[1729705317544,0.55723476,2501.8,2501.3,3.99781]
[1729705317545,0.59931144,2501.8,2501.3,3.99781]
[1729705317780,0.59931144,2501.8,2501.6,3.99737]
[1729705318001,0.59931144,2501.8,2501.5,3.99758]
[1729705318345,0.59931144,2501.8,2501.3,3.99779]
[1729705318778,0.59931144,2501.8,2501.4,3.99773]
[1729705319085,0.59931144,2501.8,2501.3,3.99779]
[1729705319289,4.78684763,2501.5,2500.5,3.99915]
[1729705319492,0.520358,2501.4,2500.8,3.99858]
[1729705319696,0.520358,2501.4,2501.0,3.99825]
[1729705319899,0.04167324,2501.4,2501.0,3.99825]
[1729705320189,9.34127239,2501.8,2501.0,3.99825]
[1729705320359,0.04167324,2501.3,2501.0,3.99825]
[1729705320560,9.34127239,2501.8,2501.0,3.99825]
[1729705320760,0.04167324,2501.2,2500.9,3.99854]
[1729705320960,9.34127239,2501.8,2501.0,3.9983]
[1729705321155,0.04167324,2501.1,2501.0,3.9983]
[1729705321359,1.31267724,2501.7,2501.0,3.9983]
[1729705321558,1.31267724,2501.7,2501.1,3.99815]
[1729705322302,1.31267724,2501.7,2501.0,3.9983]
[1729705322525,1.31267724,2501.7,2501.2,3.99793]
[1729705322822,0.55723476,2501.8,2501.3,3.99791]
[1729705322992,0.55723476,2501.8,2501.4,3.99765]
[1729705323198,0.55723476,2501.8,2501.4,3.99775]
[1729705323594,0.55723476,2501.8,2501.3,3.99791]
[1729705323796,1.38665139,2502.5,2501.7,3.99722]
[1729705323997,1.38665139,2502.5,2501.5,7.99499]
[1729705323998,3.99633,2502.3,2501.5,7.99499]
[1729705324323,3.9963,2502.4,2501.6,3.99732]
[1729705324523,3.99633,2502.3,2501.6,3.99732]
[1729705324830,0.799263,2502.2,2501.7,3.99718]
[1729705325026,3.99672,2502.1,2501.3,3.99781]
[1729705325318,3.99672,2502.1,2501.1,3.0]
[1729705325319,4.78684763,2501.8,2501.1,3.99817]
[1729705325550,4.78684763,2501.8,2501.1,3.99822]
[1729705325733,0.47868476,2501.7,2501.2,3.99792]
[1729705325882,3.99698,2501.9,2501.2,3.99792]
[1729705326217,4.82085,2502.0,2501.1,3.99822]
[1729705326219,3.99716,2501.8,2501.1,3.99822]
[1729705326534,7.99442,2501.8,2501.1,3.99822]
[1729705326711,4.78684763,2501.6,2501.1,3.99822]
[1729705326918,0.47868476,2501.5,2501.1,3.99822]
[1729705327624,0.47868476,2501.5,2500.9,3.99848]
[1729705327827,0.47868476,2501.5,2501.0,3.99837]
[1729705328330,0.47868476,2501.5,2501.1,3.99809]
[1729705329015,0.47868476,2501.5,2501.0,3.99837]
[1729705329219,0.92630424,2501.4,2501.0,3.99837]
[1729705329449,0.47868476,2501.5,2501.0,3.99837]
[1729705329649,0.03932746,2501.3,2501.0,3.99837]
[1729705329825,0.47868476,2501.5,2501.1,3.99812]
[1729705330030,0.03932746,2501.2,2501.0,3.99839]
[1729705330234,0.47868476,2501.5,2500.9,3.99849]
[1729705330235,4.47630476,2501.5,2500.9,3.99849]
[1729705330434,0.03932746,2501.1,2500.9,3.99849]
[1729705330615,4.92407524,2501.4,2500.9,3.99849]
[1729705330822,0.03932746,2501.0,2500.9,3.99849]
[1729705331332,4.92407524,2501.4,2500.9,3.99849]
[1729705331531,0.03932746,2501.0,2500.9,3.99849]
[1729705331750,0.47868476,2501.5,2501.1,3.99814]
[1729705331965,0.47868476,2501.5,2501.2,3.99792]
[1729705332149,4.78684763,2501.6,2501.0,3.99829]
[1729705332330,3.99777,2501.4,2500.6,0.2404]
[1729705332534,5.65974763,2501.3,2500.8,3.9986]
[1729705333077,9.65774763,2501.3,2500.8,3.9986]
[1729705333558,5.65974763,2501.3,2500.8,3.9986]
[1729705333766,3.99809,2501.2,2500.7,6.99876]
[1729705334126,3.99809,2501.2,2500.8,3.9987]
[1729705336053,6.62549939,2501.3,2500.9,3.99856]
[1729705336261,10.62342939,2501.3,2500.9,3.99856]
[1729705336568,5.65974763,2501.3,2500.9,3.99847]
[1729705337161,4.78684763,2501.3,2501.1,3.99823]
[1729705337361,4.78684763,2501.6,2501.2,3.99808]
[1729705337581,4.78684763,2501.6,2500.4,7.00934]
[1729705337582,4.78684763,2501.6,2501.4,3.99765]
[1729705338126,4.78684763,2501.6,2501.0,5.46558118]
[1729705338309,4.78684763,2501.1,2500.9,3.0]
[1729705338601,4.78684763,2501.1,2500.8,3.99872]
[1729705340662,4.78684763,2501.1,2500.7,1.22690118]
[1729705340663,8.78510763,2501.1,2500.7,1.22690118]
[1729705340869,4.78684763,2500.8,2500.6,4.22690118]
[1729705341070,4.78684763,2500.8,2500.6,3.0]
[1729705343397,4.78684763,2500.8,2500.7,3.99888]
[1729705343810,0.8504,2501.4,2500.7,3.99888]
[1729705343811,4.78684763,2501.1,2500.8,3.99864]
[1729705344013,4.78684763,2501.1,2500.9,3.99848]
[1729705344209,4.84817,2501.4,2501.0,3.99832]
[1729705344210,5.63724763,2501.4,2501.0,3.99832]
[1729705344445,9.63508763,2501.4,2500.9,3.99848]
[1729705344751,9.63508763,2501.4,2500.9,3.99849]
[1729705344752,4.78684763,2501.1,2500.9,3.99849]
[1729705345543,0.03772151,2501.0,2500.9,3.99849]
[1729705348543,0.03772151,2501.0,2500.9,1.23578284]
[1729705349526,0.03772151,2501.0,2500.9,1.63586824]
[1729705350545,0.03772151,2501.0,2500.8,3.99869]
[1729705351547,0.03772151,2501.0,2500.9,2.47926275]
[1729705351959,0.03772151,2501.0,2500.9,6.71822275]
[1729705352144,4.78684763,2501.5,2501.1,3.99822]
[1729705352476,1.27816476,2501.5,2501.4,1.65599331]
[1729705352776,3.9976,2501.5,2501.4,1.65599331]
[1729705353474,3.9976,2501.5,2501.4,1.2419762]
[1729705353858,3.99776,2501.4,2501.3,1.65599331]
[1729705354176,3.99792,2501.3,2501.2,1.24210926]
[1729705354729,4.0355838,2501.3,2501.2,1.24210926]
[1729705354986,0.8776,2501.0,2500.3,2.48398997]
[1729705355138,3.99959,2500.3,2500.0,2.48398997]
[1729705355329,3.99959,2500.3,2499.8,6.8927632]
[1729705355330,4.78684763,2500.1,2499.8,2.48398997]
[1729705355530,4.78684763,2500.1,2499.7,6.48443997]
[1729705355763,0.03746493,2500.0,2499.7,4.00045]
[1729705356539,0.03746493,2500.0,2499.7,4.00038]
[1729705356963,3.99974,2500.2,2499.7,8.00079]
[1729705357159,0.03746493,2499.9,2499.7,4.00038]
[1729705357351,5.02407098,2500.2,2499.8,4.0003]
[1729705358074,5.02407098,2500.2,2499.7,4.00047]
[1729705358677,4.87709,2500.4,2499.9,4.00015]
[1729705358852,8.87656,2500.4,2499.9,4.00015]
[1729705359250,3.9996,2500.3,2499.8,4.00029]
[1729705360241,3.9996,2500.3,2499.6,4.2409]
[1729705360443,3.99971,2500.2,2499.7,4.00047]
[1729705360975,3.9996,2500.3,2499.8,4.00029]
[1729705361181,4.887248,2500.3,2499.8,4.00029]
[1729705361681,0.03573477,2500.2,2499.9,4.00011]
[1729705362082,0.8776,2500.4,2499.9,8.0002]
[1729705362284,0.0350866,2500.1,2499.9,4.00009]
[1729705362465,0.8776,2500.4,2500.0,4.0]
[1729705363175,0.8776,2500.4,2499.9,4.00013]
[1729705365469,0.8776,2500.4,2499.9,4.00006]
[1729705365670,0.8776,2500.4,2499.9,4.00015]
[1729705366710,4.87706,2500.4,2499.9,4.00014]
[1729705366869,5.364748,2500.4,2499.9,4.00014]
[1729705368981,1.365288,2500.4,2499.9,4.00014]
[1729705369186,4.87698,2500.4,2499.9,4.00014]
[1729705369410,0.8776,2500.4,2499.9,8.00023]
[1729705369588,0.8776,2500.4,2499.9,4.00009]
[1729705370082,0.8776,2500.4,2499.9,4.00007]
[1729705370289,0.8776,2500.4,2500.0,3.99997]
[1729705370617,3.99901,2500.7,2500.1,3.99977]
[1729705370618,3.99911,2500.6,2500.1,3.99977]
[1729705370982,4.85059,2500.7,2500.1,3.9997]
[1729705371185,0.8517,2500.7,2500.2,4.40752954]
[1729705371386,0.8517,2500.7,2500.3,3.99947]
[1729705372823,0.8517,2500.7,2500.2,4.40762954]
[1729705374799,4.85058,2500.7,2500.2,4.40762954]
[1729705376422,4.85058,2500.7,2500.3,3.74568638]
[1729705377606,0.8517,2500.7,2500.3,3.74568638]
[1729705378229,4.85064,2500.7,2500.3,3.74568638]
[1729705378527,3.99904,2500.6,2500.1,6.99983]
[1729705379582,5.735538,2500.7,2500.2,3.99966]
[1729705381279,3.99905,2500.6,2500.1,6.99983]
[1729705381683,3.99929,2500.5,2500.0,6.99992]
[1729705382496,3.99961,2500.3,2499.9,3.0]
[1729705382698,0.8421,2500.2,2499.9,3.0]
[1729705383299,0.8421,2500.2,2499.9,7.00011]
[1729705383608,0.8421,2500.2,2499.9,3.0]
[1729705385021,3.74568638,2500.0,2499.2,4.25941]
[1729705385195,3.99995,2500.1,2499.3,4.001]
[1729705385196,4.65708638,2499.8,2499.3,4.001]
[1729705385409,8.65755638,2499.8,2499.3,4.001]
[1729705385829,4.00055,2499.7,2499.0,0.2582]
[1729705385994,4.00055,2499.7,2499.0,4.00156]
[1729705385995,7.74642638,2499.6,2499.0,4.00156]
[1729705386200,9.01226402,2499.6,2499.0,4.00156]
[1729705386400,9.01226402,2499.6,2498.7,1.50223291]
[1729705386401,1.26583764,2499.6,2499.1,4.00138]
[1729705386622,1.26583764,2499.6,2499.2,4.00121]
[1729705387097,1.26583764,2499.6,2499.1,4.00135]
[1729705387536,1.26583764,2499.6,2499.2,4.00127]
[1729705388412,5.26655764,2499.6,2499.1,4.00144]
[1729705389949,5.26655764,2499.6,2499.0,4.00157]
[1729705390118,7.74675638,2499.4,2498.7,4.00194]
[1729705390303,4.00123,2499.3,2498.7,4.00194]
[1729705390854,4.00132,2499.2,2498.7,4.00194]
[1729705391006,4.00123,2499.3,2498.7,4.00194]
[1729705391202,4.00121,2499.3,2498.7,4.00194]
[1729705391438,5.21997173,2499.3,2498.8,4.00179]
[1729705392353,4.00128,2499.2,2498.7,4.00194]
[1729705393039,5.21997173,2499.3,2498.7,4.00194]
[1729705393205,5.21997173,2499.3,2498.8,4.00191]
[1729705395417,9.22120173,2499.3,2498.8,4.00191]
[1729705395945,5.21997173,2499.3,2498.8,4.00191]
[1729705396346,5.21996173,2499.3,2498.8,4.00191]
[1729705396848,4.00138,2499.2,2498.6,4.00208]
[1729705397140,7.74666638,2499.4,2498.9,4.00173]
[1729705397345,4.00116,2499.3,2498.8,4.00189]
[1729705398047,4.00116,2499.3,2498.8,8.00371]
[1729705398249,4.00116,2499.3,2498.8,4.00182]
[1729705398804,4.00116,2499.3,2498.9,4.00176]
[1729705399350,4.00116,2499.3,2498.8,4.00181]
[1729705399843,4.00129,2499.2,2498.8,4.00181]
[1729705400942,7.74681638,2499.3,2498.8,4.00181]
[1729705401136,4.00113,2499.3,2498.8,4.00181]
[1729705402833,4.00137,2499.2,2498.7,4.00206]
[1729705403163,0.9366,2499.1,2498.8,4.00191]
[1729705404763,0.9366,2499.1,2498.9,4.00175]
[1729705405478,0.9456,2499.6,2498.5,4.0024]
[1729705405627,0.9456,2499.6,2499.2,4.00118]
[1729705406155,4.94635,2499.6,2499.1,4.00143]
[1729705406469,4.94635,2499.6,2499.2,4.00125]
[1729705407164,0.9456,2499.6,2499.2,4.00125]
[1729705407966,4.94625,2499.6,2499.2,4.00125]
[1729705409575,0.9456,2499.6,2499.3,4.00109]
[1729705409757,0.9456,2499.6,2499.2,4.00125]
[1729705410073,4.94625,2499.6,2499.1,4.00141]
[1729705411035,4.00086,2499.5,2499.0,4.00155]
[1729705411272,4.00097,2499.4,2499.0,4.00155]
[1729705411643,4.0012,2499.3,2498.8,7.00188]
[1729705411841,4.00151,2499.1,2498.6,5.13197864]
[1729705412070,1.02,2499.2,2498.7,7.00192]
[1729705412431,4.00155,2499.1,2498.7,3.0]
[1729705412776,4.00155,2499.1,2498.6,7.00218]
[1729705413249,4.0016,2499.0,2498.6,3.0]
[1729705413749,4.0016,2499.0,2498.6,7.00224]
[1729705414333,4.00147,2499.1,2498.7,4.00206]
[1729705414763,4.00147,2499.1,2498.6,7.00224]
[1729705415074,4.00161,2499.0,2498.5,7.00237]
[1729705415238,4.00181,2498.9,2498.5,3.0]
[1729705415434,0.9418,2498.8,2498.4,3.0]
[1729705415672,4.94378,2498.8,2498.3,4.00263]
[1729705416089,6.21290164,2498.8,2498.3,4.00263]
[1729705416605,2.21092164,2498.8,2498.4,4.00249]
[1729705417451,0.9418,2498.8,2498.4,4.00249]
[1729705418777,0.9418,2498.8,2498.5,4.00238]
[1729705421068,0.9418,2498.8,2498.6,4.00217]
[1729705421873,7.87992364,2499.6,2498.8,4.00191]
[1729705421874,0.9402,2499.3,2498.8,4.00191]
[1729705422056,4.94133,2499.3,2498.8,4.00191]
[1729705422252,5.835563,2499.3,2498.8,4.00181]
[1729705422994,1.834433,2499.3,2498.8,4.00181]
[1729705423376,5.835623,2499.3,2498.8,4.00181]
[1729705423784,4.00129,2499.2,2498.8,4.00181]
[1729705424005,4.00129,2499.2,2498.7,4.00204]
[1729705425395,4.00151,2499.1,2498.6,4.0021]
[1729705425992,4.50488487,2499.2,2498.7,4.00202]
[1729705426193,9.836823,2499.3,2498.8,4.00181]
[1729705426917,4.00128,2499.2,2498.7,4.00204]
[1729705427484,4.00146,2499.1,2498.7,4.00204]
[1729705427823,8.00298,2499.1,2498.6,4.0022]
[1729705428029,4.00146,2499.1,2498.6,4.0022]
[1729705431127,4.00162,2499.0,2498.6,4.0022]
[1729705432151,9.58136938,2499.3,2498.6,4.0022]
[1729705432152,4.00145,2499.1,2498.6,8.00435]
[1729705432841,0.9479,2499.0,2498.6,4.00215]
[1729705434434,4.94952,2499.0,2498.4,5.79655291]
[1729705434736,4.00183,2498.9,2498.4,4.00242]
[1729705434940,0.895135,2498.8,2498.4,4.00242]
[1729705435096,4.0009,2499.5,2498.7,4.00205]
[1729705435297,1.01,2500.0,2498.9,0.55]
[1729705435298,0.9951,2499.6,2498.9,0.55]
[1729705435493,0.9951,2499.6,2499.3,4.00112]
[1729705435697,0.9951,2499.6,2499.3,4.00103]
[1729705436341,0.9951,2499.6,2499.4,4.00088]